Cogmind - Beta 15 @@@ ROGUE MODE // 2025.05.19 @ 16:24:12 Player: OctagonalPrism Result: Self-destructed Performance ------------- Evolutions (1) 500 Regions Visited (3) 600 Robots Destroyed (34) 170 Value Destroyed (758) 758 Prototype IDs (2) 40 Alien Tech Used (0) 0 Bonus (0) 0 TOTAL SCORE: 2068 Bonus ------- None Cogmind --------- Core Integrity 309/400 Matter 294/300 Energy 125/125 System Corruption 13% Temperature Cool (36) Movement Treading (160) Location -9/Materials Parts ------- > --- POWER (1) -------- Light Ion Engine > --- PROPULSION (2) --- Light Treads (fused) > --- UTILITY (4) ------ Disposable Heat Sink Small Storage Unit Improved Targeting Computer > --- WEAPON (2) ------- Beam Rifle Heavy Assault Rifle > --- INVENTORY (8) ---- Improved Terrain Scanner Terrain Scan Processor Assault Rifle Datajack Hammer Peak State ------------ > --- POWER ------------ Ion Engine > --- PROPULSION ------- Wheel Wheel > --- UTILITY ---------- Large Storage Unit Structural Scanner Machine Analyzer Light Armor Plating > --- WEAPON ----------- Medium Laser Hammer > --- INVENTORY -------- Light Ion Engine Light Treads Small Storage Unit Improved Terrain Scanner Terrain Scan Processor Improved Targeting Computer Assault Rifle Datajack [Rating: 12] Favorites ----------- Power Light Ion Engine Engine Light Ion Engine Propulsion Wheel Treads Light Treads Wheel Wheel Utility Large Storage Unit Device Structural Scanner Storage Large Storage Unit Processor Improved Targeting Computer Protection Light Armor Plating Weapon Assault Rifle Energy Gun Medium Laser Ballistic Gun Assault Rifle Impact Weapon Hammer Build | -11 -10 -10 -9 ------- Run | Yrd Mat Min Mat Slots Evolved 2 | . . . 2 Power . | . . . . Propulsion . | . . . . Utility 2 | . . . 2 Weapon . | . . . . Parts Attached 26 | 6 10 1 9 Power 5 | 1 2 1 1 Engine 5 | 1 2 1 1 Core . | . . . . Reactor . | . . . . Propulsion 7 | 2 3 . 2 Treads 2 | 1 . . 1 Leg . | . . . . Wheel 5 | 1 3 . 1 Hover . | . . . . Flight . | . . . . Utility 7 | 1 2 . 4 Device 2 | . 1 . 1 Storage 2 | 1 1 . . Processor 2 | . . . 2 Hackware . | . . . . Protection 1 | . . . 1 Artifact . | . . . . Weapon 7 | 2 3 . 2 Energy Gun 2 | . 1 . 1 Energy Cannon . | . . . . Ballistic Gun 4 | 2 1 . 1 Ballistic Cannon . | . . . . Launcher . | . . . . Special Weapon . | . . . . Impact Weapon 1 | . 1 . . Slashing Weapon . | . . . . Piercing Weapon . | . . . . Special Melee Weapon . | . . . . Unidentified Prototypes . | . . . . Parts Lost 10 | . 3 . 7 Power 1 | . . . 1 Propulsion 3 | . 1 . 2 Utility 3 | . . . 3 Weapon 3 | . 2 . 1 Highest Loss Streak 3 | . 2 . 3 To Critical Strikes . | . . . . Average Backups 8 | 3 8 9 6 Power 1 | . 1 1 . Propulsion 1 | 1 1 1 . Utility 4 | . 4 5 2 Weapon . | . . 1 1 Tool/Special . | . . . . Unused Backups 4 | . 1 . 3 Power . | . . . . Propulsion 1 | . 1 . . Utility 2 | . . . 2 Weapon . | . . . . Tool/Special 1 | . . . 1 Average Slot Usage (%) 93 | . 94 100 79 Engine 13 | . 14 14 11 Treads 12 | . 14 14 4 Wheel 13 | . 13 14 12 Device 10 | . 9 14 7 Storage 13 | . 14 14 11 Processor 1 | . . . 10 Energy Gun 8 | . 7 14 6 Ballistic Gun 14 | . 17 6 6 Impact Weapon 3 | . 2 7 5 Peak Build Rating 12 | 6 8 8 12 Average Rating 7 | 4 7 8 10 On Entrance 5 | . 6 8 8 Naked Turns . | . . . . Heaviest Build 33 | 12 30 30 33 Greatest Support 20 | 20 20 20 20 Greatest Overweight (x) 2 | 1 2 2 1 Average Overweight (x) 1 | . 1 1 . Largest Inventory Capacity 15 | 8 15 15 15 Average Capacity 13 | 6 13 15 8 Most Carried 11 | 5 10 11 11 Average Carried 8 | 3 8 9 5 Final Capacity 15 | 8 15 15 8 Final Carried 10 | 5 9 10 5 Class Distribution -------------------- 93% | Mutant 6% | Scavenger-Mutant Dominant Class ---------------- Mutant | -10/Materials Mutant | -10/Mines Scavenger-Mutant | -9/Materials Resources | -11 -10 -10 -9 ----------- Run | Yrd Mat Min Mat Matter Collected 970 | 233 564 44 129 Remotely . | . . . . Salvage Created 1088 | 13 821 73 181 Parts 62 | 3 44 4 11 Haulers Intercepted 2 | . 2 . . Recyclers Shooed 2 | . 2 . . Parts Field Recycled . | . . . . Retrieved Matter . | . . . . Parts Self-Destructed . | . . . . Prevented . | . . . . Kills | -11 -10 -10 -9 ------- Run | Yrd Mat Min Mat Combat Hostiles Destroyed 23 | . 18 2 3 Melee 1 | . 1 . . Guns 21 | . 16 2 3 Classes Destroyed 9 | 1 7 . 1 Worker 5 | . 4 . 1 Tunneler 1 | 1 . . . Hauler 2 | . 2 . . Mechanic 1 | . 1 . . Operator 1 | . 1 . . Watcher 1 | . 1 . . Swarmer 6 | . 6 . . Grunt 14 | . 12 2 . Sentry 3 | . . . 3 Best Kill Streak 6 | 1 6 2 2 Combat Bots Only 5 | . 5 2 2 Max Kills in Single Turn 2 | 1 2 1 1 Gunslinging 1 | . 1 . . Exploded . | . . . . Melee 1 | . 1 . . Uniques/NPCs Destroyed . | . . . . Combat | -11 -10 -10 -9 -------- Run | Yrd Mat Min Mat Hostile Shots Fired 132 | . 91 15 26 Missed 25 | . 19 3 3 Hits 107 | . 72 12 23 Projectile 107 | . 72 12 23 Critical Strikes 4 | . 1 . 3 Damage Taken 1436 | . 755 145 536 Core 306 | . 183 32 91 Absorbed by Shields . | . . . . Regen/Repaired (Parts) 13 | . 13 . . Core Remaining (%) 57 | 100 . 14 . Volleys Fired 105 | 1 88 8 8 Largest 2 | 2 2 2 2 Hottest 79 | 40 70 70 79 Shots Fired 202 | 2 169 16 15 Gun 202 | 2 169 16 15 Cannon . | . . . . Launcher . | . . . . Special . | . . . . Kinetic 149 | 2 129 8 10 Thermal 53 | . 40 8 5 Explosive . | . . . . Electromagnetic . | . . . . Robot Hit Streak 14 | 1 14 4 4 Robot Miss Streak 6 | . 6 2 3 Penetration Max . | . . . . Secondary Targets 2 | . 2 . . Max Gunslinging Chain 1 | . 1 . . Shots Hit Robots 150 | 1 127 10 12 Core Hits 49 | 1 37 5 6 Critical Kills 1 | . . 1 . Critical Parts Destroyed 2 | . 2 . . Critical Strikes 4 | . 2 1 1 Burn 1 | . . . 1 Destroy 2 | . 1 1 . Smash 1 | . 1 . . Melee Attacks 29 | . 12 8 9 Impact 29 | . 12 8 9 Slashing . | . . . . Piercing . | . . . . Sneak Attacks 4 | . 3 . 1 Combat Hostiles 1 | . 1 . . Follow-up Attacks . | . . . . Damage Inflicted 2157 | 12 1795 130 220 Guns 1790 | 12 1522 130 126 Cannons . | . . . . Explosions . | . . . . Melee 367 | . 273 . 94 Ramming . | . . . . Kinetic 1362 | 12 1187 80 83 Thermal 428 | . 335 50 43 Explosive . | . . . . Electromagnetic . | . . . . Impact 367 | . 273 . 94 Slashing . | . . . . Piercing . | . . . . Highest Corruption 13 | . 1 1 13 Average Corruption 2 | . 1 1 13 Corruption Purged . | . . . . Corruption Blocked . | . . . . Effects 26 | . 9 4 13 Message Errors 8 | . 2 1 5 Matter Fused 4 | . 1 1 2 Heat Flow Errors 2 | . 2 . . Energy Discharges 2 | . . 1 1 Parts Rejected 1 | . . . 1 Parts Fused 1 | . . . 1 Data Loss (minor) 6 | . 3 1 2 Alerts 2 | . 1 . 1 Overload Shots . | . . . . Overflow Damage 113 | . 85 . 28 Projectiles . | . . . . Explosions . | . . . . Melee 113 | . 85 . 28 Knockbacks 4 | . 3 . 1 Impact 4 | . 3 . 1 Kinetic . | . . . . Secondary . | . . . . Self-Inflicted Damage . | . . . . Shots . | . . . . Rammed . | . . . . Targets Rammed . | . . . . Kicked . | . . . . Crushed . | . . . . Highest Temperature 233 | . 233 138 45 Average Temperature 38 | . 33 73 22 Received Heat Transfer 561 | . 321 81 159 Siege Activations . | . . . . Martial Activations . | . . . . Shielding Activations . | . . . . Robots Disrupted . | . . . . Combat Hostiles . | . . . . Robots Corrupted 2 | . 1 . 1 Combat Hostiles 1 | . 1 . . Parts Fried 5 | . 4 . 1 Impact Corruptions 5 | . 4 . 1 Robots Melted . | . . . . Combat Hostiles . | . . . . Parts Melted . | . . . . Heat Transferred 1332 | . 999 148 185 Parts Sabotaged . | . . . . Parts Stolen . | . . . . Parts Stripped . | . . . . Power Chain Reactions . | . . . . Alert | -11 -10 -10 -9 ------- Run | Yrd Mat Min Mat Maximum Alert Level . | . . . . Low Security (%) 100 | 100 100 100 100 Level 1 . | . . . . Level 2 . | . . . . Level 3 . | . . . . Level 4 . | . . . . Level 5 . | . . . . High Security . | . . . . Max Security . | . . . . Peak Influence 127 | 5 127 40 50 Initial 12 | . . 12 . Average 36 | . 52 5 12 Influence Increases 707 | 5 546 52 104 Destroy 0b10 Robot/C 460 | . 360 40 60 Destroy 0b10 Robot/NC 55 | 5 45 . 5 Destroy Leader 116 | . 76 10 30 Successful Hack 22 | . 15 . 7 Select Force Hacks 30 | . 30 . . Destroy Structure 9 | . 5 2 2 Partial Spotted 15 | . 15 . . Influence Decreases 697 | 5 513 85 94 Entered New Map 21 | . . 21 . Time Decay 634 | 5 483 64 82 Lost Part 42 | . 30 . 12 Squads Dispatched 5 | . 5 . . Investigation 4 | . 4 . . Extermination . | . . . . Reinforcement 1 | . 1 . . Assault . | . . . . Garrison . | . . . . Intercept . | . . . . Searches Triggered . | . . . . Construction Impeded . | . . . . Haulers Reinforced . | . . . . Active Scanning Responses . | . . . . Cargo Convoy Interrupts . | . . . . Stealth | -11 -10 -10 -9 --------- Run | Yrd Mat Min Mat Distress Signals 4 | . 3 . 1 Communications Jammed . | . . . . Distress Signals . | . . . . Times Spotted 44 | . 31 2 11 Peak Tracking Total 8 | . 5 2 8 Tactical Retreats . | . . . . Traps | -11 -10 -10 -9 ------- Run | Yrd Mat Min Mat Traps Triggered 2 | . 2 . . Indirectly . | . . . . Trap Hack Attempts . | . . . . Triggered . | . . . . Disarmed . | . . . . Reprogrammed . | . . . . Reused . | . . . . Traps Extracted . | . . . . Installed . | . . . . Triggered . | . . . . Machines | -11 -10 -10 -9 ---------- Run | Yrd Mat Min Mat Machines Disabled . | . . . . Max in Single Turn . | . . . . Machines Repaired . | . . . . Machines Dismantled . | . . . . Machines Sabotaged . | . . . . Overloaded Fab Kills . | . . . . Hacking | -11 -10 -10 -9 --------- Run | Yrd Mat Min Mat Machines Accessed 12 | . 9 1 2 Terminals 7 | . 6 . 1 Fabricators . | . . . . Repair Stations 1 | . 1 . . Recycling Units 2 | . 2 . . Scanalyzers 1 | . . . 1 Garrison Access . | . . . . Total Hacks 26 | . 21 1 4 Successful 17 | . 12 1 4 Failed 9 | . 9 . . Catastrophic . | . . . . Database Lockouts . | . . . . Manual 11 | . 11 . . Terminals 17 | . 15 . 2 Fabricators . | . . . . Repair Stations 3 | . 3 . . Recycling Units 3 | . 3 . . Scanalyzers 2 | . . . 2 Garrison Access . | . . . . Terminal Hacks 7 | . 4 1 2 Robot Analysis 1 | . 1 . . Prototype ID Bank 1 | . 1 . . Open Door 1 | . . 1 . Branch Access Points 1 | . 1 . . Emergency Access Points 1 | . . . 1 Zone Layout 2 | . 1 . 1 Fabricator Hacks . | . . . . Repair Station Hacks 2 | . 2 . . Scan Component 1 | . 1 . . Repair 1 | . 1 . . Recycling Unit Hacks 1 | . 1 . . Report Inventory 1 | . 1 . . Scanalyzer 2 | . . . 2 Insert Component 1 | . . . 1 Analyze 1 | . . . 1 Garrison Access Hacks . | . . . . Unauthorized Hacks 5 | . 5 . . Terminals 4 | . 4 . . Botnet 3 | . 3 . . Operators 1 | . 1 . . Fabricators . | . . . . Repair Stations . | . . . . Recycling Units 1 | . 1 . . Tunnel 1 | . 1 . . Scanalyzers . | . . . . Garrison Access . | . . . . Data Cores Recovered . | . . . . Used . | . . . . Hacking Detections 7 | . 7 . . Full Trace Events 3 | . 3 . . Feedback Events 1 | . 1 . . Corruption 1 | . 1 . . Feedback Blocked . | . . . . Robot Schematics Acquired . | . . . . Robots Built . | . . . . Authchips . | . . . . Time . | . . . . Total Robot Build Rating . | . . . . Part Schematics Acquired 1 | . . . 1 Parts Built . | . . . . Authchips . | . . . . Time . | . . . . Total Part Build Rating . | . . . . Parts Repaired 1 | . 1 . . Time 26 | . 26 . . Parts Recycled . | . . . . Recycled Matter . | . . . . Retrieved Matter . | . . . . Retrieved Components . | . . . . Parts Scanalyzed 1 | . . . 1 Part Schematics Acquired 1 | . . . 1 Parts Damaged . | . . . . Bothacking | -11 -10 -10 -9 ------------ Run | Yrd Mat Min Mat Used RIF Installer . | . . . . Robots Hacked . | . . . . Non-combat . | . . . . Combat . | . . . . Robot Hacks Applied . | . . . . Relay Couplers Released . | . . . . Fabnet Peak Effective % . | . . . . Robots Rewired . | . . . . Allies Hacked . | . . . . Hacks Repelled . | . . . . Allies | -11 -10 -10 -9 -------- Run | Yrd Mat Min Mat Total Allies . | . . . . Largest Group . | . . . . Highest-Rated Group . | . . . . Highest-Rated Ally . | . . . . Total Orders . | . . . . Ally Attacks . | . . . . Total Damage . | . . . . Kills . | . . . . Allies Corrupted . | . . . . Allies Melted . | . . . . Intel | -11 -10 -10 -9 ------- Run | Yrd Mat Min Mat Active Infowar (turns) 1650 | . 1032 479 139 Structural 1566 | . 1032 479 55 Machine Analysis 137 | . . . 137 Robot Analysis Total 1 | . 1 . . Derelict Logs Recovered 1 | . . 1 . Drone Launches . | . . . . Drone Recoveries . | . . . . Exploration | -11 -10 -10 -9 ------------- Run | Yrd Mat Min Mat Turns Passed 2407 | 110 1517 479 301 Spaces Moved 1246 | 66 777 216 187 Core 11 | 11 . . . Treads 450 | 49 195 137 69 Legs . | . . . . Wheels 785 | 6 582 79 118 Hover . | . . . . Flight . | . . . . Fastest Speed 50 | 50 95 110 80 Average Speed 143 | 137 136 192 116 Slowest Speed 240 | 160 240 240 160 Overloaded Moves . | . . . . Propulsion Burnouts . | . . . . Robots Hopped . | . . . . Potential Cave-ins . | . . . . Cave-ins Triggered 1 | . . . 1 Exploration Rate (%) 47 | 4 98 59 27 Regions Visited 3 Branch Regions 1 Pre-discovered Areas 1 | . 1 . . Known Exits Taken 1 | . 1 . . Unknown Exits Taken 2 | 1 . 1 . Scrap Searched 1 | . . 1 . Spaces Dug 9 | . 2 4 3 Terrain Destroyed 9 | . 2 4 3 Melee 9 | . 2 4 3 Projectile . | . . . . AOE . | . . . . Terrain Rammed . | . . . . Walls Destroyed . | . . . . Machines Disabled . | . . . . Actions | -11 -10 -10 -9 --------- Run | Yrd Mat Min Mat Total 1608 | 80 1040 249 239 Wait 163 | 2 133 13 15 Move 1243 | 65 776 215 187 Hop . | . . . . Pick Up 17 | 6 7 1 3 Fast Attach 12 | 5 3 . 4 Attach 13 | 1 6 . 6 Detach 6 | . 4 . 2 Swap 10 | . 6 3 1 Drop 10 | . 5 1 4 Fire 105 | 1 88 8 8 Melee 29 | . 12 8 9 Ram . | . . . . Kick . | . . . . Crush . | . . . . Escape Stasis . | . . . . Rewire . | . . . . Trap . | . . . . Miscellaneous . | . . . . Route ------- -11/Scrapyard -10/Materials (discovered 6 exits: *Mat x3 / *Min x2 / [*Sub]) -10/Mines (discovered 2 exits: *Mat / [Sub]) -9/Materials (discovered 2 exits: [*Mat] / [*Min]) History --------- Turn | Location | Event 3 | -11/Scrapyard | Discovered new exit (range 16) 111 | -11/Scrapyard | Entered Materials 222 | -10/Materials | Discovered new exit (range 5) 321 | -10/Materials | Build established: Mutant 432 | -10/Materials | Discovered new exit (range 10) 760 | -10/Materials | Discovered new exit (range 16) 849 | -10/Materials | Core integrity fell below 50% 961 | -10/Materials | Discovered new exit (range 12) 1252 | -10/Materials | Identified exit to Mines 1417 | -10/Materials | Discovered new exit (range 8) 1421 | -10/Materials | Discovered new exit (range 4) 1461 | -10/Materials | Repaired Structural Scanner 1628 | -10/Materials | Entered Mines 1636 | -10/Mines | Met a Derelict bent on vengeance 1753 | -10/Mines | Core integrity fell below 20% 1829 | -10/Mines | Learned 2 Materials zone layouts 1845 | -10/Mines | Received a Rocket Launcher from a helpful Derelict 1853 | -10/Mines | Discovered new exit (range 13) 1890 | -10/Mines | Found the Drone Emporium 2092 | -10/Mines | Discovered new exit (range 7) 2107 | -10/Mines | Entered Materials 2107 | -9/Materials | Evolved 2 slots: Utility x2 2162 | -9/Materials | Crushed by falling debris 2162 | -9/Materials | System corruption reached 10% 2193 | -9/Materials | Lost 3 parts (1n1u1w) 2244 | -9/Materials | Discovered new exit (range 13) 2284 | -9/Materials | Discovered new exit (range 15) 2408 | -9/Materials | Self-destructed Last Messages --------------- 02312_ T012<>HEHZN4NG 02331_ System corrupted: IFF burst signal emitted. 02346_ R,CCY1PMWJHV PG: XAWWFU&GW6I 02354_ K-01 Serf collects debris. 02362_ F6Y2ZUL|M|GZFHLRUC 02364_ K-01 Serf collects debris. 02364_ Critical hit (Burn: +37). 02364_ Ion Engine destroyed. 02367_ K-01 Serf collects debris. 02370_ Y-45 Defender suffers critical hit (Burn). 02373_ K-01 Serf collects debris. 02374_ Wheel destroyed. 02376_ Y-45 Defender destroyed. 02376_ K-01 Serf collects debris. 02381_ Acquired 19 matter. 02383_ BJCAJENWJ#G/5N0YJ0FDBHJ&5XCEW 02397_ W-16 Scout sends out distress signal. 02400_ System corrupted: Lgt. Treads fused. 02406_ C-30 ARC bursts open, deploying its payload. 02406_ S-10 Pest unfolds itself. Map ----- +----------------------------------------------------+ | ?????????????????????????????????????????????????? | | ?????????????????????????????????????????????????? | | ?????????????????????????????????????????????????? | | ?????????????????????????????????????????????????? | | ?????????????????????????????????????????????????? | | ?????????????????????????????????????????????????? | | ?????????????????????????????????????????????????? | | ?????????????????????????????????????????????????? | | ?????????????????????????????????? # # # | | ?????????????????????????? ??????? # # # | | ?????????????????????????? ??????? # + + | | ?????????????????????????? ??????? # # # | | ?????????????????????????? ???????"" # # # | | ?????????????????????????? ???????"" ####### ### | | ?????????????????????????? ???????"" #?######/#### | | ?????????????????????????? ???????####?# # | | ?????????????????????????# #???????????# """ """ # | | ?????????????????????????# #???????????# """ """ # | | ?????????????????????????# #???????????# """ """ # | | ?????????????????????????# ####????????# # | | ?????????????????????????+ #????????# # | | ?????????????????????????# #????????# # | | ?????????????????????????# ####?????# # | | ?????????????????????????#b% ?? #?????########### | | ??????"T"????????#########g#???# #???????????????? | | ??????"""??????#?# @ #???# #???????????????? | | ?????????????? #?# #?### ###?????????????? | | ??####+?????## ### #?# #?????????????? | | ?? ?? # ### #?????????????? | | ?? + + #?????????????? | | # ### #?????????????? | | """ """ # #?# [% #?????????????? | | """ """ # #?###+####????????????? | | """ """ ###########?# * #????????????? | | ### #???# #????????????? | | #???# #????????????? | | < #???# #????????????? | | """T""" #???# #????????????? | | ####### ############ #???# #????????????? | | # #??????????## ##########+##????????????? | | + #???????????# ## ! ## #?????????????? | | # #???????????# ## ## #?????????????? | | # #???????????# ## ## #?????????????? | | = # #???????????# ## "T" ## #?????????????? | | # #???????????# ## """ + #?????????????? | | ####### #??????????## ## ####?????????????? | | ??????# ############ ###+###########?????????? | | ??????# #?????????? | | ??????############## < #?????????? | | ???????????????????# #?????????? | +----------------------------------------------------+ Best States ------------- Heat Dissipation 28 Coolant Potential 50 Energy Generation 10 Energy Capacity 250 Matter Stores 300 Matter Capacity 300 Sight Range 16 Terrain Scan Density 10 Armor Coverage 150 Evasion (%) 44 Targeting Accuracy 6 Recoil Reduction 1 Item Schematics ----------------- Lrg. Storage Unit | -9/Materials | Scanalyzed Robot Schematics ------------------ None Fabricated ------------ Nothing Repaired ---------- Structural Scanner | 35% | -10/Materials Alien Tech Used ----------------- None Achievements -------------- None Challenges ------------ None Game ------ Seed AbsorptionKineticNetwork Manual? 0 Play Time 00:21:23 Cumulative 216.1 hours Start 2025.05.19 @ 16:04:08 End 2025.05.19 @ 16:24:12 Sessions 1 Manual Loads 0 Difficulty Rogue Special Mode None Game No. 170 Rogue 170 Adventurer 0 Explorer 0 Win Type - Total 6 Types 4/0/1/1/0/0/0/0/0/0 Lore% 71 Gallery% 66 Achievement% 55 Wizard Run 0 Options --------- Layout 2 ASCII 0 Keyboard 0 Movement Numpad Keybinds 0 Fullscreen 1 Font 16/Terminus Map View 55x47 Zoom Use 0% Tactical HUD 1 Map Filters NONE Filters NONE Steam 1 RUN: df86748b-ea1b-4abd-a5c1-93be564f1b4e